[Event "Titled Tuesday Blitz February 01 B 2022"]
[White "Deac, Bogdan-Daniel"]
[Black "Murzin, Volodar"]
[WhiteFideId "1226380"]
[BlackFideId "44155573"]
[WhiteElo "2646"]
[BlackElo "2585"]
[Result "1-0"]
[Round "05"]
[TimeControl "180+1"]
[Date "2022.02.01"]
[WhiteClock "0:00:06"]
[BlackClock "0:00:04"]

1. e4 {[%clk 0:03:00]}  c6 {[%clk 0:02:57]} 2. d4 {[%clk 0:02:56]}  d5 {[%clk 0:02:58]} 3. f3 {[%clk 0:02:57]}  e6 {[%clk 0:02:55]} 4. Nc3 {[%clk 0:02:56]}  Bb4 {[%clk 0:02:55]} 5. Bd2 {[%clk 0:02:56]}  dxe4 {[%clk 0:02:55]} 6. Nxe4 {[%clk 0:02:54]}  Be7 {[%clk 0:02:54]} 7. Be3 {[%clk 0:02:49]}  Nd7 {[%clk 0:02:52]} 8. Qd2 {[%clk 0:02:45]}  Ngf6 {[%clk 0:02:52]} 9. Bd3 {[%clk 0:02:42]}  Nd5 {[%clk 0:02:48]} 10. Bg5 {[%clk 0:02:33]}  f5 {[%clk 0:02:24]} 11. Nd6+ {[%clk 0:02:25]}  Kf8 {[%clk 0:02:24]} 12. Bxe7+ {[%clk 0:02:24]}  Qxe7 {[%clk 0:02:25]} 13. Nxc8 {[%clk 0:02:25]}  Qh4+ {[%clk 0:02:20]} 14. g3 {[%clk 0:02:20]}  Qxd4 {[%clk 0:02:19]} 15. Nd6 {[%clk 0:02:19]}  Qxb2 {[%clk 0:02:03]} 16. Rc1 {[%clk 0:01:58]}  Qe5+ {[%clk 0:02:00]} 17. Ne4 {[%clk 0:01:58]}  fxe4 {[%clk 0:01:48]} 18. fxe4 {[%clk 0:01:59]}  N5f6 {[%clk 0:01:48]} 19. Nf3 {[%clk 0:01:54]}  Qc5 {[%clk 0:01:47]} 20. Kf1 {[%clk 0:01:44]}  Ng4 {[%clk 0:01:23]} 21. Qf4+ {[%clk 0:01:13]}  Ndf6 {[%clk 0:01:20]} 22. Ng5 {[%clk 0:01:12]}  Ke7 {[%clk 0:00:56]} 23. Kg2 {[%clk 0:01:08]}  e5 {[%clk 0:00:35]} 24. Qd2 {[%clk 0:00:56]}  Ne3+ {[%clk 0:00:10]} 25. Kg1 {[%clk 0:00:19]}  Rad8 {[%clk 0:00:10]} 26. h3 {[%clk 0:00:16]}  h6 {[%clk 0:00:06]} 27. Nf3 {[%clk 0:00:14]}  Rhf8 {[%clk 0:00:06]} 28. Kh2 {[%clk 0:00:09]}  Nfg4+ {[%clk 0:00:04]} 29. hxg4 {[%clk 0:00:09]}  Rxf3 {[%clk 0:00:05]} 30. Kh3 {[%clk 0:00:08]}  Rdf8 {[%clk 0:00:04]} 31. Be2 {[%clk 0:00:06]}  Rf2 {[%clk 0:00:04]} 32. Rcd1 {[%clk 0:00:06]}  Qd4 {[%clk 0:00:04]} 33. Qa5 {[%clk 0:00:05]}  Nxd1 {[%clk 0:00:03]} 34. Rxd1 {[%clk 0:00:05]}  Qb6 {[%clk 0:00:04]} 35. Qxe5+ {[%clk 0:00:05]}  Kf7 {[%clk 0:00:04]} 36. Rd7+ {[%clk 0:00:06]} 1-0


[Site "https://www.chess.com"]

[Event "Titled Tuesday Blitz February 01 B 2022"]
[White "Dourerassou, Jonathan"]
[Black "Andreikin, Dmitry"]
[WhiteFideId "628050"]
[BlackFideId "4158814"]
[WhiteElo "2513"]
[BlackElo "2736"]
[Result "0-1"]
[Round "05"]
[TimeControl "180+1"]
[Date "2022.02.01"]
[WhiteClock "0:00:09"]
[BlackClock "0:00:24"]

1. c4 {[%clk 0:03:00]}  e6 {[%clk 0:02:58]} 2. Nc3 {[%clk 0:03:01]}  d5 {[%clk 0:02:58]} 3. d4 {[%clk 0:03:00]}  Nf6 {[%clk 0:02:58]} 4. cxd5 {[%clk 0:02:58]}  exd5 {[%clk 0:02:59]} 5. Bg5 {[%clk 0:02:57]}  Be6 {[%clk 0:02:59]} 6. e3 {[%clk 0:02:58]}  Nbd7 {[%clk 0:02:58]} 7. Bd3 {[%clk 0:02:57]}  c6 {[%clk 0:02:57]} 8. Nge2 {[%clk 0:02:56]}  h6 {[%clk 0:02:56]} 9. Bh4 {[%clk 0:02:56]}  g5 {[%clk 0:02:56]} 10. Bg3 {[%clk 0:02:56]}  Nh5 {[%clk 0:02:57]} 11. Qc2 {[%clk 0:02:55]}  Qe7 {[%clk 0:02:43]} 12. O-O-O {[%clk 0:02:52]}  Bg7 {[%clk 0:02:40]} 13. Kb1 {[%clk 0:02:51]}  Rc8 {[%clk 0:02:37]} 14. Bf5 {[%clk 0:02:49]}  Bxf5 {[%clk 0:02:25]} 15. Qxf5 {[%clk 0:02:50]}  Qe6 {[%clk 0:02:25]} 16. Qxe6+ {[%clk 0:02:46]}  fxe6 {[%clk 0:02:26]} 17. Bd6 {[%clk 0:02:46]}  Bf8 {[%clk 0:02:21]} 18. Be5 {[%clk 0:02:40]}  Bg7 {[%clk 0:02:10]} 19. Bd6 {[%clk 0:02:36]}  Nb6 {[%clk 0:02:01]} 20. b3 {[%clk 0:02:28]}  Kd7 {[%clk 0:01:58]} 21. Be5 {[%clk 0:02:25]}  Rhf8 {[%clk 0:01:55]} 22. f3 {[%clk 0:02:22]}  Ke7 {[%clk 0:01:51]} 23. g4 {[%clk 0:02:19]}  Bxe5 {[%clk 0:01:47]} 24. dxe5 {[%clk 0:02:20]}  Ng7 {[%clk 0:01:47]} 25. f4 {[%clk 0:02:19]}  c5 {[%clk 0:01:46]} 26. Nb5 {[%clk 0:02:16]}  d4 {[%clk 0:01:43]} 27. exd4 {[%clk 0:01:56]}  gxf4 {[%clk 0:01:43]} 28. Nxa7 {[%clk 0:01:52]}  Rcd8 {[%clk 0:01:33]} 29. dxc5 {[%clk 0:01:50]}  Nd5 {[%clk 0:01:33]} 30. Nb5 {[%clk 0:01:39]}  f3 {[%clk 0:01:29]} 31. Ng3 {[%clk 0:01:39]}  Ne3 {[%clk 0:01:27]} 32. Rd6 {[%clk 0:01:10]}  f2 {[%clk 0:01:24]} 33. Nf1 {[%clk 0:00:52]}  Nxg4 {[%clk 0:01:21]} 34. Nc3 {[%clk 0:00:32]}  Nf5 {[%clk 0:01:11]} 35. Ne4 {[%clk 0:00:30]}  Nxd6 {[%clk 0:00:58]} 36. exd6+ {[%clk 0:00:31]}  Kd7 {[%clk 0:00:58]} 37. h3 {[%clk 0:00:30]}  Ne5 {[%clk 0:00:54]} 38. Nfd2 {[%clk 0:00:28]}  Kc6 {[%clk 0:00:52]} 39. b4 {[%clk 0:00:26]}  b6 {[%clk 0:00:43]} 40. Rf1 {[%clk 0:00:22]}  bxc5 {[%clk 0:00:41]} 41. bxc5 {[%clk 0:00:23]}  Nd3 {[%clk 0:00:41]} 42. Nb3 {[%clk 0:00:20]}  Rf4 {[%clk 0:00:36]} 43. Nc3 {[%clk 0:00:10]}  Nxc5 {[%clk 0:00:27]} 44. Ne2 {[%clk 0:00:10]}  Nxb3 {[%clk 0:00:23]} 45. Nxf4 {[%clk 0:00:10]}  Nd2+ {[%clk 0:00:23]} 46. Kc2 {[%clk 0:00:09]}  Nxf1 {[%clk 0:00:24]} 47. Nxe6 {[%clk 0:00:09]}  Ne3+ {[%clk 0:00:24]} 0-1


[Site "https://www.chess.com"]

[Event "Titled Tuesday Blitz February 01 B 2022"]
[White "Erigaisi Arjun"]
[Black "Babazada, Khazar"]
[WhiteFideId "35009192"]
[BlackFideId "13413554"]
[WhiteElo "2745"]
[BlackElo "2418"]
[Result "0-1"]
[Round "05"]
[TimeControl "180+1"]
[Date "2022.02.01"]
[WhiteClock "0:00:47"]
[BlackClock "0:00:27"]

1. d4 {[%clk 0:03:00]}  Nf6 {[%clk 0:02:58]} 2. Bg5 {[%clk 0:03:01]}  e6 {[%clk 0:02:57]} 3. e4 {[%clk 0:03:01]}  h6 {[%clk 0:02:56]} 4. Bxf6 {[%clk 0:03:01]}  Qxf6 {[%clk 0:02:57]} 5. c3 {[%clk 0:03:02]}  d6 {[%clk 0:02:53]} 6. Bd3 {[%clk 0:03:02]}  Nc6 {[%clk 0:02:41]} 7. Ne2 {[%clk 0:03:01]}  e5 {[%clk 0:02:37]} 8. O-O {[%clk 0:03:01]}  Be7 {[%clk 0:02:33]} 9. Na3 {[%clk 0:02:55]}  O-O {[%clk 0:02:33]} 10. Nb5 {[%clk 0:02:56]}  Bd8 {[%clk 0:02:32]} 11. f4 {[%clk 0:02:56]}  Qg6 {[%clk 0:01:56]} 12. d5 {[%clk 0:02:54]}  Ne7 {[%clk 0:01:55]} 13. f5 {[%clk 0:02:53]}  Qf6 {[%clk 0:01:54]} 14. c4 {[%clk 0:02:53]}  c6 {[%clk 0:01:51]} 15. Nbc3 {[%clk 0:02:52]}  Bb6+ {[%clk 0:01:49]} 16. Kh1 {[%clk 0:02:52]}  Kh8 {[%clk 0:01:44]} 17. Ng3 {[%clk 0:02:52]}  Ng8 {[%clk 0:01:42]} 18. Rf3 {[%clk 0:02:44]}  Qh4 {[%clk 0:01:40]} 19. Nf1 {[%clk 0:02:40]}  Nf6 {[%clk 0:01:39]} 20. Rh3 {[%clk 0:02:40]}  Qf2 {[%clk 0:01:39]} 21. Nd2 {[%clk 0:02:39]}  cxd5 {[%clk 0:01:13]} 22. Nxd5 {[%clk 0:02:40]}  Nxd5 {[%clk 0:01:09]} 23. cxd5 {[%clk 0:02:41]}  Bd7 {[%clk 0:01:07]} 24. Nc4 {[%clk 0:02:36]}  Bc5 {[%clk 0:01:07]} 25. Qh5 {[%clk 0:02:31]}  f6 {[%clk 0:00:52]} 26. Rf1 {[%clk 0:02:29]}  Qd4 {[%clk 0:00:52]} 27. Rg3 {[%clk 0:02:06]}  Be8 {[%clk 0:00:43]} 28. Qg4 {[%clk 0:02:05]}  Rf7 {[%clk 0:00:43]} 29. b3 {[%clk 0:01:59]}  Rc7 {[%clk 0:00:43]} 30. a4 {[%clk 0:01:49]}  Rac8 {[%clk 0:00:42]} 31. h4 {[%clk 0:01:48]}  a6 {[%clk 0:00:42]} 32. a5 {[%clk 0:01:47]}  Bb4 {[%clk 0:00:38]} 33. Kh2 {[%clk 0:01:44]}  Bb5 {[%clk 0:00:38]} 34. Qh5 {[%clk 0:01:35]}  Bxc4 {[%clk 0:00:37]} 35. Bxc4 {[%clk 0:01:36]}  Bxa5 {[%clk 0:00:36]} 36. Rxg7 {[%clk 0:01:26]}  Rxg7 {[%clk 0:00:35]} 37. Qxh6+ {[%clk 0:01:26]}  Kg8 {[%clk 0:00:36]} 38. Qxf6 {[%clk 0:01:26]}  Re8 {[%clk 0:00:36]} 39. Qe6+ {[%clk 0:00:46]}  Rxe6 {[%clk 0:00:35]} 40. dxe6 {[%clk 0:00:47]}  Qxe4 {[%clk 0:00:27]} 0-1


[Site "https://www.chess.com"]

[Event "Titled Tuesday Blitz February 01 B 2022"]
[White "Garriga Cazorla, Pere"]
[Black "Shirov, Alexei"]
[WhiteFideId "32011601"]
[BlackFideId "2209390"]
[WhiteElo "2458"]
[BlackElo "2645"]
[Result "1-0"]
[Round "05"]
[TimeControl "180+1"]
[Date "2022.02.01"]
[WhiteClock "0:00:07"]
[BlackClock "0:00:07"]

1. d4 {[%clk 0:02:31]}  d5 {[%clk 0:02:58]} 2. Nf3 {[%clk 0:02:24]}  Nf6 {[%clk 0:02:58]} 3. c4 {[%clk 0:02:24]}  c6 {[%clk 0:02:57]} 4. Nc3 {[%clk 0:02:24]}  e6 {[%clk 0:02:57]} 5. e3 {[%clk 0:02:24]}  Nbd7 {[%clk 0:02:56]} 6. Qc2 {[%clk 0:02:24]}  Bd6 {[%clk 0:02:55]} 7. Bd3 {[%clk 0:02:25]}  O-O {[%clk 0:02:54]} 8. O-O {[%clk 0:02:25]}  dxc4 {[%clk 0:02:54]} 9. Bxc4 {[%clk 0:02:26]}  b5 {[%clk 0:02:54]} 10. Be2 {[%clk 0:02:26]}  Bb7 {[%clk 0:02:52]} 11. e4 {[%clk 0:02:26]}  e5 {[%clk 0:02:52]} 12. dxe5 {[%clk 0:02:27]}  Nxe5 {[%clk 0:02:52]} 13. Nd4 {[%clk 0:02:27]}  Neg4 {[%clk 0:02:45]} 14. g3 {[%clk 0:02:26]}  Bc5 {[%clk 0:02:45]} 15. Nf5 {[%clk 0:02:19]}  Qb6 {[%clk 0:02:45]} 16. Kg2 {[%clk 0:02:07]}  Nxf2 {[%clk 0:02:39]} 17. Bg5 {[%clk 0:01:42]}  N6g4 {[%clk 0:02:15]} 18. h3 {[%clk 0:01:38]}  f6 {[%clk 0:01:56]} 19. Bf4 {[%clk 0:01:32]}  Ne5 {[%clk 0:01:55]} 20. b4 {[%clk 0:01:11]}  Bxb4 {[%clk 0:01:45]} 21. Rxf2 {[%clk 0:01:11]}  Bc5 {[%clk 0:01:29]} 22. Rff1 {[%clk 0:01:09]}  Rae8 {[%clk 0:01:27]} 23. Rac1 {[%clk 0:01:03]}  g6 {[%clk 0:01:24]} 24. Nh6+ {[%clk 0:00:59]}  Kg7 {[%clk 0:01:23]} 25. Ng4 {[%clk 0:00:59]}  Nxg4 {[%clk 0:01:21]} 26. Bxg4 {[%clk 0:00:53]}  Bd4 {[%clk 0:01:21]} 27. Bf3 {[%clk 0:00:52]}  b4 {[%clk 0:01:14]} 28. Na4 {[%clk 0:00:52]}  Qa5 {[%clk 0:01:10]} 29. Nc5 {[%clk 0:00:48]}  Bxc5 {[%clk 0:01:02]} 30. Qxc5 {[%clk 0:00:49]}  Qxa2+ {[%clk 0:01:01]} 31. Rf2 {[%clk 0:00:49]}  Qa3 {[%clk 0:01:00]} 32. Rd1 {[%clk 0:00:47]}  Rf7 {[%clk 0:00:58]} 33. h4 {[%clk 0:00:46]}  a5 {[%clk 0:00:54]} 34. Rfd2 {[%clk 0:00:42]}  Qa4 {[%clk 0:00:35]} 35. Rd7 {[%clk 0:00:37]}  Qa2+ {[%clk 0:00:35]} 36. R1d2 {[%clk 0:00:33]}  Qe6 {[%clk 0:00:33]} 37. Rxf7+ {[%clk 0:00:33]}  Qxf7 {[%clk 0:00:33]} 38. Qxa5 {[%clk 0:00:33]}  b3 {[%clk 0:00:27]} 39. Kh2 {[%clk 0:00:19]}  c5 {[%clk 0:00:26]} 40. Qxc5 {[%clk 0:00:17]}  Bxe4 {[%clk 0:00:26]} 41. Bxe4 {[%clk 0:00:18]}  Rxe4 {[%clk 0:00:25]} 42. Qb5 {[%clk 0:00:18]}  Re7 {[%clk 0:00:21]} 43. Rd6 {[%clk 0:00:11]}  Rb7 {[%clk 0:00:20]} 44. Rb6 {[%clk 0:00:11]}  Rxb6 {[%clk 0:00:19]} 45. Qxb6 {[%clk 0:00:12]}  h6 {[%clk 0:00:19]} 46. Bc1 {[%clk 0:00:10]}  g5 {[%clk 0:00:18]} 47. hxg5 {[%clk 0:00:10]}  hxg5 {[%clk 0:00:16]} 48. Bb2 {[%clk 0:00:08]}  Qh5+ {[%clk 0:00:16]} 49. Kg1 {[%clk 0:00:08]}  Qd1+ {[%clk 0:00:15]} 50. Kg2 {[%clk 0:00:09]}  Qd5+ {[%clk 0:00:14]} 51. Kg1 {[%clk 0:00:09]}  Qf3 {[%clk 0:00:12]} 52. Qf2 {[%clk 0:00:08]}  Qxf2+ {[%clk 0:00:11]} 53. Kxf2 {[%clk 0:00:09]}  Kg6 {[%clk 0:00:11]} 54. Ke3 {[%clk 0:00:09]}  f5 {[%clk 0:00:11]} 55. Kf3 {[%clk 0:00:08]}  Kh5 {[%clk 0:00:10]} 56. Bf6 {[%clk 0:00:08]}  Kg6 {[%clk 0:00:10]} 57. Bb2 {[%clk 0:00:09]}  Kf7 {[%clk 0:00:10]} 58. Bc1 {[%clk 0:00:09]}  Ke6 {[%clk 0:00:09]} 59. Ke3 {[%clk 0:00:08]}  Kd5 {[%clk 0:00:09]} 60. Kd3 {[%clk 0:00:08]}  Ke5 {[%clk 0:00:08]} 61. Kc3 {[%clk 0:00:07]}  Ke4 {[%clk 0:00:07]} 62. Bxg5 {[%clk 0:00:06]}  Kf3 {[%clk 0:00:07]} 63. Bf4 {[%clk 0:00:07]}  Ke4 {[%clk 0:00:07]} 64. Kxb3 {[%clk 0:00:07]} 1-0


[Site "https://www.chess.com"]

[Event "Titled Tuesday Blitz February 01 B 2022"]
[White "Hess, Robert"]
[Black "Vakhlamov, Igor L."]
[WhiteFideId "2022036"]
[BlackFideId "24126748"]
[WhiteElo "2557"]
[BlackElo "2401"]
[Result "1-0"]
[Round "05"]
[TimeControl "180+1"]
[Date "2022.02.01"]
[WhiteClock "0:00:03"]
[BlackClock "0:00:05"]

1. b3 {[%clk 0:03:00]}  Nf6 {[%clk 0:02:53]} 2. Bb2 {[%clk 0:03:01]}  d6 {[%clk 0:02:53]} 3. d3 {[%clk 0:03:01]}  g6 {[%clk 0:02:51]} 4. Nd2 {[%clk 0:03:02]}  Bg7 {[%clk 0:02:51]} 5. h3 {[%clk 0:03:02]}  O-O {[%clk 0:02:51]} 6. e3 {[%clk 0:03:03]}  e5 {[%clk 0:02:48]} 7. Ne2 {[%clk 0:03:03]}  c5 {[%clk 0:02:48]} 8. g4 {[%clk 0:03:03]}  Nc6 {[%clk 0:02:48]} 9. Bg2 {[%clk 0:03:03]}  Re8 {[%clk 0:02:42]} 10. Ng3 {[%clk 0:03:01]}  h6 {[%clk 0:02:35]} 11. Qe2 {[%clk 0:02:52]}  Be6 {[%clk 0:02:33]} 12. O-O-O {[%clk 0:02:51]}  a5 {[%clk 0:02:30]} 13. a4 {[%clk 0:02:51]}  Rb8 {[%clk 0:02:15]} 14. Nde4 {[%clk 0:02:27]}  Nb4 {[%clk 0:02:05]} 15. c4 {[%clk 0:02:13]}  b5 {[%clk 0:00:39]} 16. axb5 {[%clk 0:02:06]}  a4 {[%clk 0:00:40]} 17. bxa4 {[%clk 0:02:04]}  Qa5 {[%clk 0:00:40]} 18. Nc3 {[%clk 0:01:43]}  d5 {[%clk 0:00:39]} 19. Kb1 {[%clk 0:00:52]}  d4 {[%clk 0:00:38]} 20. Nce4 {[%clk 0:00:22]}  Qxa4 {[%clk 0:00:30]} 21. Nxc5 {[%clk 0:00:21]}  Qa2+ {[%clk 0:00:30]} 22. Kc1 {[%clk 0:00:22]}  Rec8 {[%clk 0:00:24]} 23. exd4 {[%clk 0:00:18]}  exd4 {[%clk 0:00:21]} 24. Bxd4 {[%clk 0:00:16]}  Qa5 {[%clk 0:00:11]} 25. Nxe6 {[%clk 0:00:14]}  fxe6 {[%clk 0:00:11]} 26. g5 {[%clk 0:00:06]}  hxg5 {[%clk 0:00:11]} 27. h4 {[%clk 0:00:06]}  Qxb5 {[%clk 0:00:04]} 28. Qxe6+ {[%clk 0:00:04]}  Kf8 {[%clk 0:00:05]} 29. Bxf6 {[%clk 0:00:03]}  Rc7 {[%clk 0:00:04]} 30. Bxg7+ {[%clk 0:00:03]}  Rxg7 {[%clk 0:00:05]} 31. Qd6+ {[%clk 0:00:03]}  Kg8 {[%clk 0:00:04]} 32. cxb5 {[%clk 0:00:04]}  Rc8+ {[%clk 0:00:02]} 33. Kb2 {[%clk 0:00:03]}  Rc2+ {[%clk 0:00:02]} 34. Kb3 {[%clk 0:00:04]}  Rgc7 {[%clk 0:00:03]} 35. Qxc7 {[%clk 0:00:04]}  Rxc7 {[%clk 0:00:04]} 36. Kxb4 {[%clk 0:00:04]}  Rf7 {[%clk 0:00:04]} 37. Bd5 {[%clk 0:00:04]}  Kg7 {[%clk 0:00:04]} 38. Bxf7 {[%clk 0:00:05]}  Kf6 {[%clk 0:00:02]} 39. hxg5+ {[%clk 0:00:06]}  Ke5 {[%clk 0:00:03]} 40. Rhe1+ {[%clk 0:00:05]}  Kf4 {[%clk 0:00:04]} 41. Bxg6 {[%clk 0:00:05]}  Kf3 {[%clk 0:00:05]} 42. Be4+ {[%clk 0:00:05]}  Kf4 {[%clk 0:00:04]} 43. b6 {[%clk 0:00:05]}  Ke5 {[%clk 0:00:04]} 44. b7 {[%clk 0:00:05]}  Kd4 {[%clk 0:00:05]} 45. Nf5+ {[%clk 0:00:04]}  Ke5 {[%clk 0:00:05]} 46. b8=Q+ {[%clk 0:00:04]}  Ke6 {[%clk 0:00:05]} 47. Qe8# {[%clk 0:00:03]} 1-0


[Site "https://www.chess.com"]

[Event "Titled Tuesday Blitz February 01 B 2022"]
[White "Kobalia, Mikhail"]
[Black "Suder, Jakub"]
[WhiteFideId "4119150"]
[BlackFideId "1195310"]
[WhiteElo "2667"]
[BlackElo "2058"]
[Result "1-0"]
[Round "05"]
[TimeControl "180+1"]
[Date "2022.02.01"]
[WhiteClock "0:01:50"]
[BlackClock "0:00:49"]

1. e4 {[%clk 0:03:00]}  c5 {[%clk 0:02:58]} 2. Nf3 {[%clk 0:03:00]}  e6 {[%clk 0:02:57]} 3. g3 {[%clk 0:03:00]}  Nc6 {[%clk 0:02:57]} 4. Bg2 {[%clk 0:03:00]}  Nf6 {[%clk 0:02:57]} 5. Qe2 {[%clk 0:03:00]}  Be7 {[%clk 0:02:55]} 6. O-O {[%clk 0:03:00]}  d5 {[%clk 0:02:54]} 7. exd5 {[%clk 0:02:56]}  Nxd5 {[%clk 0:02:54]} 8. Rd1 {[%clk 0:02:56]}  O-O {[%clk 0:02:51]} 9. d4 {[%clk 0:02:55]}  cxd4 {[%clk 0:02:46]} 10. Nxd4 {[%clk 0:02:55]}  Nxd4 {[%clk 0:02:31]} 11. Rxd4 {[%clk 0:02:56]}  Bf6 {[%clk 0:02:30]} 12. Rd1 {[%clk 0:02:55]}  Qc7 {[%clk 0:02:21]} 13. c4 {[%clk 0:02:53]}  Ne7 {[%clk 0:02:14]} 14. Nc3 {[%clk 0:02:53]}  Bxc3 {[%clk 0:02:13]} 15. bxc3 {[%clk 0:02:52]}  Ng6 {[%clk 0:02:05]} 16. Ba3 {[%clk 0:02:50]}  Re8 {[%clk 0:02:03]} 17. Bd6 {[%clk 0:02:49]}  Qa5 {[%clk 0:01:57]} 18. Qb2 {[%clk 0:02:46]}  Qa6 {[%clk 0:01:53]} 19. Qb5 {[%clk 0:02:42]}  Qxb5 {[%clk 0:01:47]} 20. cxb5 {[%clk 0:02:42]}  a6 {[%clk 0:01:46]} 21. b6 {[%clk 0:02:42]}  a5 {[%clk 0:01:46]} 22. a4 {[%clk 0:02:39]}  Ra6 {[%clk 0:01:37]} 23. Bc7 {[%clk 0:02:29]}  Ne7 {[%clk 0:01:27]} 24. c4 {[%clk 0:02:28]}  f6 {[%clk 0:01:21]} 25. Rd6 {[%clk 0:02:18]}  Kf7 {[%clk 0:01:20]} 26. Rad1 {[%clk 0:02:17]}  Ra8 {[%clk 0:01:10]} 27. Rd8 {[%clk 0:02:14]}  Nc6 {[%clk 0:00:51]} 28. Rxe8 {[%clk 0:02:08]}  Kxe8 {[%clk 0:00:52]} 29. Bxc6+ {[%clk 0:02:08]}  bxc6 {[%clk 0:00:53]} 30. Rd8+ {[%clk 0:02:07]}  Ke7 {[%clk 0:00:52]} 31. Rxc8 {[%clk 0:01:50]}  Rxc8 {[%clk 0:00:49]} 32. b7 {[%clk 0:01:50]} 1-0


[Site "https://www.chess.com"]

[Event "Titled Tuesday Blitz February 01 B 2022"]
[White "Martinez Alcantara, Jose Eduardo"]
[Black "Drygalov, Andrey"]
[WhiteFideId "3805662"]
[BlackFideId "24171735"]
[WhiteElo "2690"]
[BlackElo "2540"]
[Result "1-0"]
[Round "05"]
[TimeControl "180+1"]
[Date "2022.02.01"]
[WhiteClock "0:00:09"]
[BlackClock "0:00:58"]

1. e4 {[%clk 0:03:00]}  c5 {[%clk 0:02:59]} 2. Nf3 {[%clk 0:03:01]}  d6 {[%clk 0:03:00]} 3. c3 {[%clk 0:03:01]}  Nf6 {[%clk 0:03:00]} 4. h3 {[%clk 0:03:02]}  g6 {[%clk 0:03:00]} 5. Bd3 {[%clk 0:03:03]}  Bg7 {[%clk 0:03:00]} 6. Bc2 {[%clk 0:03:03]}  e5 {[%clk 0:02:59]} 7. O-O {[%clk 0:03:03]}  O-O {[%clk 0:02:59]} 8. d4 {[%clk 0:03:04]}  cxd4 {[%clk 0:02:59]} 9. cxd4 {[%clk 0:03:05]}  exd4 {[%clk 0:03:00]} 10. Nxd4 {[%clk 0:03:06]}  Nc6 {[%clk 0:03:00]} 11. Nxc6 {[%clk 0:03:06]}  bxc6 {[%clk 0:03:01]} 12. Nc3 {[%clk 0:03:07]}  d5 {[%clk 0:03:01]} 13. Bg5 {[%clk 0:03:07]}  d4 {[%clk 0:03:00]} 14. Na4 {[%clk 0:02:53]}  h6 {[%clk 0:03:00]} 15. Bh4 {[%clk 0:02:41]}  Re8 {[%clk 0:02:57]} 16. Re1 {[%clk 0:02:38]}  Qa5 {[%clk 0:02:42]} 17. Bd3 {[%clk 0:02:01]}  Nh5 {[%clk 0:02:38]} 18. Rc1 {[%clk 0:01:55]}  Nf4 {[%clk 0:02:38]} 19. Rc5 {[%clk 0:01:38]}  Qc7 {[%clk 0:02:26]} 20. Bg3 {[%clk 0:01:35]}  Be5 {[%clk 0:02:25]} 21. Qf3 {[%clk 0:01:04]}  Bd6 {[%clk 0:02:12]} 22. Bxf4 {[%clk 0:00:58]}  Bxf4 {[%clk 0:02:11]} 23. Rc2 {[%clk 0:00:48]}  Be5 {[%clk 0:01:58]} 24. Bc4 {[%clk 0:00:46]}  Kg7 {[%clk 0:01:46]} 25. Nc5 {[%clk 0:00:45]}  Re7 {[%clk 0:01:36]} 26. Nd3 {[%clk 0:00:43]}  Bd7 {[%clk 0:01:37]} 27. b4 {[%clk 0:00:40]}  Rae8 {[%clk 0:01:32]} 28. Rec1 {[%clk 0:00:32]}  Qd6 {[%clk 0:01:29]} 29. Bb3 {[%clk 0:00:28]}  Bf6 {[%clk 0:01:25]} 30. Re1 {[%clk 0:00:23]}  Rf8 {[%clk 0:01:22]} 31. Rc5 {[%clk 0:00:22]}  Be5 {[%clk 0:01:13]} 32. Rd1 {[%clk 0:00:18]}  f6 {[%clk 0:01:12]} 33. Qe2 {[%clk 0:00:13]}  g5 {[%clk 0:01:09]} 34. Kh1 {[%clk 0:00:12]}  Rfe8 {[%clk 0:01:08]} 35. Re1 {[%clk 0:00:12]}  f5 {[%clk 0:01:04]} 36. Nxe5 {[%clk 0:00:09]}  Rxe5 {[%clk 0:01:04]} 37. Qc4 {[%clk 0:00:08]}  Rb8 {[%clk 0:01:04]} 38. Qf7+ {[%clk 0:00:08]}  Kh8 {[%clk 0:01:00]} 39. Rxe5 {[%clk 0:00:08]}  Qxe5 {[%clk 0:01:01]} 40. Qxd7 {[%clk 0:00:09]}  fxe4 {[%clk 0:01:00]} 41. Qxc6 {[%clk 0:00:09]}  Re8 {[%clk 0:00:58]} 42. Qxh6# {[%clk 0:00:09]} 1-0


[Site "https://www.chess.com"]

[Event "Titled Tuesday Blitz February 01 B 2022"]
[White "Naroditsky, Daniel"]
[Black "Golubka, Petro"]
[WhiteFideId "2026961"]
[BlackFideId "14114224"]
[WhiteElo "2608"]
[BlackElo "2392"]
[Result "0-1"]
[Round "05"]
[TimeControl "180+1"]
[Date "2022.02.01"]
[WhiteClock "0:00:02"]
[BlackClock "0:00:35"]

1. e4 {[%clk 0:03:00]}  a6 {[%clk 0:02:51]} 2. d4 {[%clk 0:03:00]}  h6 {[%clk 0:02:47]} 3. Nf3 {[%clk 0:02:55]}  e6 {[%clk 0:02:39]} 4. Bd3 {[%clk 0:02:54]}  b6 {[%clk 0:02:37]} 5. c3 {[%clk 0:02:52]}  Bb7 {[%clk 0:02:38]} 6. Nbd2 {[%clk 0:02:52]}  d6 {[%clk 0:02:37]} 7. O-O {[%clk 0:02:52]}  Nd7 {[%clk 0:02:37]} 8. Re1 {[%clk 0:02:52]}  g6 {[%clk 0:02:34]} 9. Nf1 {[%clk 0:02:51]}  Bg7 {[%clk 0:02:34]} 10. a4 {[%clk 0:02:51]}  Ne7 {[%clk 0:02:34]} 11. Ng3 {[%clk 0:02:50]}  c5 {[%clk 0:02:32]} 12. Bf4 {[%clk 0:02:48]}  Qc7 {[%clk 0:02:28]} 13. a5 {[%clk 0:02:41]}  b5 {[%clk 0:02:24]} 14. dxc5 {[%clk 0:02:40]}  Nxc5 {[%clk 0:02:23]} 15. Bxd6 {[%clk 0:02:35]}  Qc8 {[%clk 0:02:20]} 16. Bf1 {[%clk 0:02:17]}  Nd7 {[%clk 0:02:10]} 17. c4 {[%clk 0:02:10]}  bxc4 {[%clk 0:02:09]} 18. Rc1 {[%clk 0:02:06]}  c3 {[%clk 0:02:09]} 19. e5 {[%clk 0:01:50]}  Nd5 {[%clk 0:02:04]} 20. Ne4 {[%clk 0:01:51]}  Bf8 {[%clk 0:01:57]} 21. Nxc3 {[%clk 0:01:44]}  Qd8 {[%clk 0:01:55]} 22. Ne4 {[%clk 0:01:38]}  Qxa5 {[%clk 0:01:53]} 23. Qb3 {[%clk 0:01:32]}  Qb6 {[%clk 0:01:50]} 24. Qa4 {[%clk 0:01:32]}  f5 {[%clk 0:01:32]} 25. Bxf8 {[%clk 0:00:35]}  fxe4 {[%clk 0:01:28]} 26. Bc5 {[%clk 0:00:36]}  Bc6 {[%clk 0:01:19]} 27. Qxe4 {[%clk 0:00:31]}  Nxc5 {[%clk 0:01:17]} 28. Qxg6+ {[%clk 0:00:32]}  Kd7 {[%clk 0:01:15]} 29. Qg7+ {[%clk 0:00:24]}  Ne7 {[%clk 0:01:13]} 30. Rcd1+ {[%clk 0:00:23]}  Bd5 {[%clk 0:01:13]} 31. Rxd5+ {[%clk 0:00:22]}  exd5 {[%clk 0:01:12]} 32. e6+ {[%clk 0:00:22]}  Kd6 {[%clk 0:01:12]} 33. Nd4 {[%clk 0:00:15]}  Ne4 {[%clk 0:01:07]} 34. Bd3 {[%clk 0:00:02]}  Rag8 {[%clk 0:01:01]} 35. Nf5+ {[%clk 0:00:02]}  Nxf5 {[%clk 0:01:01]} 36. Qd7+ {[%clk 0:00:03]}  Ke5 {[%clk 0:01:01]} 37. Bxe4 {[%clk 0:00:04]}  dxe4 {[%clk 0:01:00]} 38. e7 {[%clk 0:00:05]}  Re8 {[%clk 0:00:46]} 39. Qa4 {[%clk 0:00:03]}  Qd4 {[%clk 0:00:43]} 40. Qxa6 {[%clk 0:00:02]}  Rxe7 {[%clk 0:00:40]} 41. g3 {[%clk 0:00:03]}  Rd8 {[%clk 0:00:39]} 42. Kg2 {[%clk 0:00:03]}  Rd6 {[%clk 0:00:37]} 43. Qa5+ {[%clk 0:00:03]}  Qd5 {[%clk 0:00:37]} 44. Qc3+ {[%clk 0:00:03]}  Ke6 {[%clk 0:00:37]} 45. f3 {[%clk 0:00:03]}  e3 {[%clk 0:00:36]} 46. Kh3 {[%clk 0:00:03]}  Kf7 {[%clk 0:00:36]} 47. Qh8 {[%clk 0:00:02]}  Ng7 {[%clk 0:00:35]} 0-1


[Site "https://www.chess.com"]